[Event "Late-Titled-Tuesday-Blitz-January-30-2024"]
[Site "Chess.com"]
[Date "2024.01.30"]
[Round "4"]
[White "AndreyNeves"]
[Black "Jenia84"]
[Result "1-0"]
[WhiteElo "2079"]
[BlackElo "2263"]
[TimeControl "180+1"]
[EndTime "14:39:34 PST"]
[Termination "AndreyNeves won by resignation"]

1. d4 {[%clk 0:03:00.9]} 1... Nf6 {[%clk 0:02:57.1]} 2. c4 {[%clk 0:03:00.9]}
2... e6 {[%clk 0:02:57.6]} 3. Nf3 {[%clk 0:03:00.6]} 3... b6 {[%clk 0:02:56.5]}
4. g3 {[%clk 0:02:59.6]} 4... Bb7 {[%clk 0:02:56.8]} 5. Bg2 {[%clk 0:02:59.5]}
5... Be7 {[%clk 0:02:57.4]} 6. O-O {[%clk 0:02:59.5]} 6... O-O {[%clk 0:02:58]}
7. Nc3 {[%clk 0:02:59.5]} 7... Ne4 {[%clk 0:02:55.6]} 8. Bd2 {[%clk 0:02:58.1]}
8... d6 {[%clk 0:02:52.1]} 9. Rc1 {[%clk 0:02:55.5]} 9... Nd7 {[%clk 0:02:51.7]}
10. Qc2 {[%clk 0:02:54.6]} 10... f5 {[%clk 0:02:49.7]} 11. Rfd1 {[%clk
0:02:54.4]} 11... Ndf6 {[%clk 0:02:41.5]} 12. e3 {[%clk 0:02:54.2]} 12... Rc8
{[%clk 0:02:36.8]} 13. Be1 {[%clk 0:02:53.9]} 13... Nxc3 {[%clk 0:02:34.5]} 14.
Bxc3 {[%clk 0:02:52.5]} 14... Ne4 {[%clk 0:02:33.8]} 15. b3 {[%clk 0:02:52.5]}
15... Bf6 {[%clk 0:02:31.4]} 16. Bb2 {[%clk 0:02:52.3]} 16... Qe7 {[%clk
0:02:31.1]} 17. Nd2 {[%clk 0:02:49.8]} 17... Nxd2 {[%clk 0:02:18.2]} 18. Bxb7
{[%clk 0:02:38]} 18... Rb8 {[%clk 0:02:18.4]} 19. Bg2 {[%clk 0:02:33.1]} 19...
Ne4 {[%clk 0:02:17.9]} 20. Bxe4 {[%clk 0:02:33.1]} 20... fxe4 {[%clk 0:02:16.6]}
21. Qxe4 {[%clk 0:02:32.9]} 21... Qf7 {[%clk 0:02:11.3]} 22. f4 {[%clk 0:02:30]}
22... Rbe8 {[%clk 0:02:09.2]} 23. Re1 {[%clk 0:02:26.8]} 23... Qh5 {[%clk
0:02:08.7]} 24. Kg2 {[%clk 0:02:23.4]} 24... e5 {[%clk 0:02:06.4]} 25. dxe5
{[%clk 0:02:18.7]} 25... dxe5 {[%clk 0:02:06.6]} 26. f5 {[%clk 0:02:18.8]} 26...
Bd8 {[%clk 0:01:55.6]} 27. g4 {[%clk 0:02:14.4]} 27... Qg5 {[%clk 0:01:49.8]}
28. Bxe5 {[%clk 0:02:03.7]} 28... h5 {[%clk 0:01:43.9]} 29. h3 {[%clk
0:01:57.4]} 29... Bf6 {[%clk 0:01:42.9]} 30. Bxf6 {[%clk 0:01:52.8]} 30... Qxf6
{[%clk 0:01:40.2]} 31. Qd5+ {[%clk 0:01:51.2]} 31... Kh7 {[%clk 0:01:38.9]} 32.
e4 {[%clk 0:01:48.8]} 32... Re5 {[%clk 0:01:35.9]} 33. Qd2 {[%clk 0:01:42.4]}
33... Rd8 {[%clk 0:01:31.3]} 34. Qf4 {[%clk 0:01:37.5]} 34... Rd4 {[%clk
0:01:14.1]} 35. g5 {[%clk 0:01:35.5]} 35... Qd6 {[%clk 0:01:10.8]} 36. g6+
{[%clk 0:01:31.8]} 36... Kg8 {[%clk 0:01:10.8]} 37. Re2 {[%clk 0:01:24.1]} 37...
c5 {[%clk 0:01:09.3]} 38. Rf1 {[%clk 0:01:20.8]} 38... Qe7 {[%clk 0:00:57.2]}
39. Rfe1 {[%clk 0:01:05.1]} 39... a5 {[%clk 0:00:51.9]} 40. h4 {[%clk
0:01:04.9]} 40... Kf8 {[%clk 0:00:47.1]} 41. Qg5 {[%clk 0:01:04.2]} 41... Qd6
{[%clk 0:00:38]} 42. Qxh5 {[%clk 0:01:00.6]} 42... Ke7 {[%clk 0:00:35.9]} 43.
Qg5+ {[%clk 0:00:54.5]} 43... Kd7 {[%clk 0:00:34.9]} 44. h5 {[%clk 0:00:50.8]}
44... Kc7 {[%clk 0:00:31.9]} 45. h6 {[%clk 0:00:49.3]} 45... gxh6 {[%clk
0:00:30.8]} 46. Qxh6 {[%clk 0:00:49.2]} 46... Rd3 {[%clk 0:00:26.1]} 47. Qf4
{[%clk 0:00:43.6]} 47... Kc6 {[%clk 0:00:18.5]} 48. f6 {[%clk 0:00:37.2]} 48...
Qe6 {[%clk 0:00:13.6]} 49. Re3 {[%clk 0:00:31]} 49... Rd2+ {[%clk 0:00:13.4]}
50. R1e2 {[%clk 0:00:30.4]} 50... Rd1 {[%clk 0:00:13]} 51. f7 {[%clk 0:00:25.4]}
51... Qxg6+ {[%clk 0:00:11.7]} 52. Rg3 {[%clk 0:00:22.5]} 52... Qh7 {[%clk
0:00:11.3]} 53. Rh3 {[%clk 0:00:15.3]} 53... Qg7+ {[%clk 0:00:10.2]} 54. Qg3
{[%clk 0:00:14.5]} 54... Rg1+ {[%clk 0:00:08]} 55. Kxg1 {[%clk 0:00:13.6]} 55...
Rg5 {[%clk 0:00:07.7]} 56. Rg2 {[%clk 0:00:11.3]} 56... Rxg3 {[%clk 0:00:07.7]}
57. Rhxg3 {[%clk 0:00:12.2]} 57... Qxf7 {[%clk 0:00:08.2]} 58. Rg6+ {[%clk
0:00:12.1]} 58... Kb7 {[%clk 0:00:08.2]} 59. Rg7 {[%clk 0:00:12.4]} 1-0

[Event "Late-Titled-Tuesday-Blitz-January-30-2024"]
[Site "Chess.com"]
[Date "2024.01.30"]
[Round "4"]
[White "koncheto"]
[Black "Hui_Li_Macau"]
[Result "0-1"]
[WhiteElo "2504"]
[BlackElo "2340"]
[TimeControl "180+1"]
[EndTime "14:39:36 PST"]
[Termination "Hui_Li_Macau won by resignation"]

1. e4 {[%clk 0:03:00.4]} 1... e5 {[%clk 0:03:00.1]} 2. Nf3 {[%clk 0:03:00.1]}
2... Nf6 {[%clk 0:03:00.5]} 3. Nxe5 {[%clk 0:03:00.3]} 3... d6 {[%clk
0:03:00.7]} 4. Nf3 {[%clk 0:03:00.7]} 4... Nxe4 {[%clk 0:03:01.2]} 5. d4 {[%clk
0:03:01.6]} 5... d5 {[%clk 0:03:01.6]} 6. Bd3 {[%clk 0:03:02.2]} 6... Nc6 {[%clk
0:03:00.7]} 7. O-O {[%clk 0:03:02.2]} 7... Be7 {[%clk 0:03:01.2]} 8. c4 {[%clk
0:03:02.7]} 8... Nb4 {[%clk 0:03:01.5]} 9. Nc3 {[%clk 0:03:03.1]} 9... Nxc3
{[%clk 0:03:01.1]} 10. bxc3 {[%clk 0:03:04]} 10... Nxd3 {[%clk 0:03:01.3]} 11.
Qxd3 {[%clk 0:03:04.9]} 11... dxc4 {[%clk 0:03:01.8]} 12. Qxc4 {[%clk
0:03:05.8]} 12... O-O {[%clk 0:03:00]} 13. Bf4 {[%clk 0:03:01.4]} 13... Be6
{[%clk 0:02:59.9]} 14. Qxc7 {[%clk 0:02:53.2]} 14... Qxc7 {[%clk 0:02:59.9]} 15.
Bxc7 {[%clk 0:02:54.1]} 15... Rac8 {[%clk 0:02:51.7]} 16. Be5 {[%clk 0:02:19.8]}
16... f6 {[%clk 0:02:46.8]} 17. Rfe1 {[%clk 0:01:53.2]} 17... fxe5 {[%clk
0:02:32.7]} 18. Rxe5 {[%clk 0:01:52]} 18... Kf7 {[%clk 0:02:30.1]} 19. Rae1
{[%clk 0:01:49.8]} 19... Rxc3 {[%clk 0:01:54.7]} 20. Rxe6 {[%clk 0:01:45.8]}
20... Bf6 {[%clk 0:01:52.9]} 21. Rd6 {[%clk 0:01:35.2]} 21... Rc7 {[%clk
0:01:34.4]} 22. h4 {[%clk 0:01:15.5]} 22... Re8 {[%clk 0:01:29.6]} 23. Ne5+
{[%clk 0:00:59.1]} 23... Bxe5 {[%clk 0:01:16.6]} 24. dxe5 {[%clk 0:00:46.8]}
24... Ree7 {[%clk 0:01:14.7]} 25. h5 {[%clk 0:00:39.9]} 25... Rc2 {[%clk
0:01:02.8]} 26. a4 {[%clk 0:00:29.2]} 26... Rc4 {[%clk 0:01:01.1]} 27. a5 {[%clk
0:00:22.1]} 27... Ra4 {[%clk 0:01:01.2]} 28. Rd5 {[%clk 0:00:06.3]} 28... Ke6
{[%clk 0:00:39.5]} 29. Rd6+ {[%clk 0:00:05.9]} 29... Kf7 {[%clk 0:00:39.3]} 30.
Rd5 {[%clk 0:00:06.2]} 30... Ke6 {[%clk 0:00:34]} 31. Rb5 {[%clk 0:00:06.2]}
31... Rc7 {[%clk 0:00:26.5]} 32. Reb1 {[%clk 0:00:05.3]} 32... h6 {[%clk
0:00:17.6]} 33. Rxb7 {[%clk 0:00:05.3]} 33... Rxb7 {[%clk 0:00:15.5]} 34. Rxb7
{[%clk 0:00:06.2]} 34... Rxa5 {[%clk 0:00:16.4]} 35. Rxg7 {[%clk 0:00:06.6]}
35... Kxe5 {[%clk 0:00:09.2]} 36. Rg6 {[%clk 0:00:04]} 36... Ra1+ {[%clk
0:00:08.3]} 37. Kh2 {[%clk 0:00:04]} 37... Kf5 {[%clk 0:00:07]} 38. Rxh6 {[%clk
0:00:04.3]} 38... Kg5 {[%clk 0:00:07.5]} 39. Rh8 {[%clk 0:00:04.8]} 39... a5
{[%clk 0:00:07.7]} 40. Kh3 {[%clk 0:00:04.9]} 40... a4 {[%clk 0:00:08]} 41. f3
{[%clk 0:00:03.5]} 41... a3 {[%clk 0:00:08.2]} 42. g4 {[%clk 0:00:03.8]} 42...
a2 {[%clk 0:00:08.2]} 43. Ra8 {[%clk 0:00:02.3]} 43... Rh1+ {[%clk 0:00:08]} 44.
Kg2 {[%clk 0:00:02.9]} 44... a1=Q {[%clk 0:00:08.8]} 45. Rxa1 {[%clk 0:00:03.6]}
45... Rxa1 {[%clk 0:00:09.7]} 46. Kg3 {[%clk 0:00:04.3]} 46... Ra3 {[%clk
0:00:09.9]} 47. Kg2 {[%clk 0:00:04.5]} 47... Ra2+ {[%clk 0:00:09.8]} 48. Kg3
{[%clk 0:00:05.2]} 48... Ra3 {[%clk 0:00:10.1]} 49. Kg2 {[%clk 0:00:05.5]} 49...
Kf4 {[%clk 0:00:09.4]} 50. h6 {[%clk 0:00:04.3]} 50... Ra6 {[%clk 0:00:09.3]}
51. g5 {[%clk 0:00:02.8]} 51... Kxg5 {[%clk 0:00:09.1]} 52. Kg3 {[%clk
0:00:03.2]} 0-1

[Event "Late-Titled-Tuesday-Blitz-January-30-2024"]
[Site "Chess.com"]
[Date "2024.01.30"]
[Round "4"]
[White "Vladimir_2020"]
[Black "vugarrasulov"]
[Result "1-0"]
[WhiteElo "2761"]
[BlackElo "2942"]
[TimeControl "180+1"]
[EndTime "14:39:39 PST"]
[Termination "Vladimir_2020 won on time"]

1. Nf3 {[%clk 0:03:00.9]} 1... d5 {[%clk 0:02:58.7]} 2. g3 {[%clk 0:03:00.1]}
2... g6 {[%clk 0:02:58.9]} 3. Bg2 {[%clk 0:02:59.6]} 3... Bg7 {[%clk 0:02:59.5]}
4. d4 {[%clk 0:02:59.6]} 4... c6 {[%clk 0:02:59.8]} 5. O-O {[%clk 0:02:59.3]}
5... Nf6 {[%clk 0:03:00.3]} 6. c3 {[%clk 0:02:45.6]} 6... O-O {[%clk 0:02:59.7]}
7. Re1 {[%clk 0:02:43.6]} 7... a5 {[%clk 0:02:56.4]} 8. Nbd2 {[%clk 0:02:42.9]}
8... Bf5 {[%clk 0:02:50.2]} 9. Nh4 {[%clk 0:02:42.1]} 9... Be6 {[%clk
0:02:49.6]} 10. e4 {[%clk 0:02:40.7]} 10... dxe4 {[%clk 0:02:50.5]} 11. Nxe4
{[%clk 0:02:40.6]} 11... Nxe4 {[%clk 0:02:46.6]} 12. Bxe4 {[%clk 0:02:38.2]}
12... Nd7 {[%clk 0:02:46.2]} 13. Bg2 {[%clk 0:02:36.5]} 13... a4 {[%clk
0:02:42.7]} 14. Rxe6 {[%clk 0:02:27.7]} 14... fxe6 {[%clk 0:02:42.7]} 15. Bh3
{[%clk 0:02:27.9]} 15... e5 {[%clk 0:02:31.8]} 16. Be6+ {[%clk 0:02:04.6]} 16...
Kh8 {[%clk 0:02:31.3]} 17. Qg4 {[%clk 0:02:04.5]} 17... Rf6 {[%clk 0:02:23.5]}
18. Bxd7 {[%clk 0:02:02.2]} 18... exd4 {[%clk 0:02:18.9]} 19. Bg5 {[%clk
0:01:54.2]} 19... Rd6 {[%clk 0:02:08.7]} 20. Be6 {[%clk 0:01:52.3]} 20... Rxe6
{[%clk 0:01:48.1]} 21. Qxe6 {[%clk 0:01:51]} 21... a3 {[%clk 0:01:47.9]} 22.
bxa3 {[%clk 0:01:41.6]} 22... dxc3 {[%clk 0:01:47.8]} 23. Bxe7 {[%clk
0:01:40.6]} 23... Qd5 {[%clk 0:01:38.8]} 24. Qxd5 {[%clk 0:01:27.5]} 24... cxd5
{[%clk 0:01:39.7]} 25. Nf3 {[%clk 0:01:27.2]} 25... d4 {[%clk 0:01:18.6]} 26.
Ne1 {[%clk 0:01:15.2]} 26... Re8 {[%clk 0:01:08]} 27. Bb4 {[%clk 0:01:11.7]}
27... Re2 {[%clk 0:01:03.3]} 28. Rd1 {[%clk 0:01:00.2]} 28... Kg8 {[%clk
0:00:59.5]} 29. Kf1 {[%clk 0:00:59]} 29... Rxa2 {[%clk 0:00:55.7]} 30. Nd3
{[%clk 0:00:58]} 30... Kf7 {[%clk 0:00:49.4]} 31. Bc5 {[%clk 0:00:50.5]} 31...
Ke6 {[%clk 0:00:47.7]} 32. Nb4 {[%clk 0:00:48.3]} 32... Rb2 {[%clk 0:00:39.3]}
33. Bxd4 {[%clk 0:00:47.2]} 33... Bxd4 {[%clk 0:00:36.2]} 34. Rxd4 {[%clk
0:00:46.7]} 34... c2 {[%clk 0:00:35.7]} 35. Nxc2 {[%clk 0:00:42.4]} 35... Rxc2
{[%clk 0:00:36.6]} 36. Rb4 {[%clk 0:00:42.5]} 36... Rc7 {[%clk 0:00:29.9]} 37.
Rb6+ {[%clk 0:00:42.3]} 37... Kd5 {[%clk 0:00:29.7]} 38. a4 {[%clk 0:00:42.6]}
38... Ke4 {[%clk 0:00:25.3]} 39. Kg2 {[%clk 0:00:42]} 39... Kf5 {[%clk
0:00:25.8]} 40. a5 {[%clk 0:00:39.5]} 40... Kg5 {[%clk 0:00:25.3]} 41. h4+
{[%clk 0:00:38]} 41... Kh6 {[%clk 0:00:25.6]} 42. Rb5 {[%clk 0:00:35.5]} 42...
Kg7 {[%clk 0:00:24.8]} 43. g4 {[%clk 0:00:34.1]} 43... Rd7 {[%clk 0:00:22.7]}
44. f3 {[%clk 0:00:33.9]} 44... Kf6 {[%clk 0:00:22.4]} 45. Kg3 {[%clk
0:00:33.8]} 45... Rc7 {[%clk 0:00:22.7]} 46. Rb6+ {[%clk 0:00:33.3]} 46... Kg7
{[%clk 0:00:19.2]} 47. Kf4 {[%clk 0:00:31.5]} 47... Rc4+ {[%clk 0:00:17.9]} 48.
Ke3 {[%clk 0:00:31.5]} 48... Rc7 {[%clk 0:00:14.9]} 49. Kd4 {[%clk 0:00:30.3]}
49... Kh6 {[%clk 0:00:13.3]} 50. Kd5 {[%clk 0:00:25.5]} 50... Rf7 {[%clk
0:00:13.3]} 51. Ke4 {[%clk 0:00:25.3]} 51... Re7+ {[%clk 0:00:13.2]} 52. Kf4
{[%clk 0:00:22.7]} 52... Rf7+ {[%clk 0:00:13.8]} 53. Kg3 {[%clk 0:00:22.9]}
53... Rc7 {[%clk 0:00:13.9]} 54. h5 {[%clk 0:00:19.6]} 54... Kg7 {[%clk
0:00:12.6]} 55. g5 {[%clk 0:00:19.4]} 55... gxh5 {[%clk 0:00:09.9]} 56. f4
{[%clk 0:00:19.5]} 56... Rc3+ {[%clk 0:00:08.4]} 57. Kh4 {[%clk 0:00:19.6]}
57... Rc4 {[%clk 0:00:09]} 58. Kxh5 {[%clk 0:00:18.6]} 58... Rxf4 {[%clk
0:00:08.5]} 59. Rxb7+ {[%clk 0:00:19]} 59... Kg8 {[%clk 0:00:09.2]} 60. a6
{[%clk 0:00:19.4]} 1-0

[Event "Late-Titled-Tuesday-Blitz-January-30-2024"]
[Site "Chess.com"]
[Date "2024.01.30"]
[Round "4"]
[White "JulAnt"]
[Black "KorolDimitriy75"]
[Result "1-0"]
[WhiteElo "2540"]
[BlackElo "2369"]
[TimeControl "180+1"]
[EndTime "14:39:42 PST"]
[Termination "JulAnt won on time"]

1. d4 {[%clk 0:03:00.9]} 1... Nf6 {[%clk 0:02:59.8]} 2. c4 {[%clk 0:03:00.9]}
2... c5 {[%clk 0:03:00]} 3. d5 {[%clk 0:03:00.8]} 3... b5 {[%clk 0:03:00.5]} 4.
cxb5 {[%clk 0:03:00.8]} 4... a6 {[%clk 0:03:01.2]} 5. e3 {[%clk 0:03:01.4]} 5...
axb5 {[%clk 0:03:00.5]} 6. Bxb5 {[%clk 0:03:01.8]} 6... Qa5+ {[%clk 0:03:01.1]}
7. Nc3 {[%clk 0:03:02.3]} 7... Bb7 {[%clk 0:03:01.6]} 8. Bd2 {[%clk 0:02:59.6]}
8... Qb6 {[%clk 0:03:01.6]} 9. a4 {[%clk 0:02:56.9]} 9... Nxd5 {[%clk 0:03:01]}
10. Nf3 {[%clk 0:02:56.5]} 10... e6 {[%clk 0:03:00.6]} 11. O-O {[%clk
0:02:54.6]} 11... Nb4 {[%clk 0:03:00.7]} 12. e4 {[%clk 0:02:50.3]} 12... Be7
{[%clk 0:03:00.5]} 13. Bf4 {[%clk 0:02:45.8]} 13... O-O {[%clk 0:02:59.3]} 14.
Bxb8 {[%clk 0:02:38.8]} 14... Rfxb8 {[%clk 0:02:23.2]} 15. Qxd7 {[%clk
0:02:37.8]} 15... Bf6 {[%clk 0:02:07.1]} 16. Qd2 {[%clk 0:02:37.2]} 16... Rd8
{[%clk 0:01:53.8]} 17. Qe2 {[%clk 0:02:37.4]} 17... Nc6 {[%clk 0:01:53.8]} 18.
e5 {[%clk 0:02:28.6]} 18... Be7 {[%clk 0:01:45]} 19. Rfd1 {[%clk 0:02:21]} 19...
Nd4 {[%clk 0:01:35]} 20. Nxd4 {[%clk 0:02:21.1]} 20... cxd4 {[%clk 0:01:26.4]}
21. Ne4 {[%clk 0:02:21.2]} 21... Rd5 {[%clk 0:00:59.9]} 22. Nd2 {[%clk
0:01:49.2]} 22... Bb4 {[%clk 0:00:29.1]} 23. Nf3 {[%clk 0:01:47.6]} 23... Rad8
{[%clk 0:00:24.3]} 24. Bd3 {[%clk 0:01:44.5]} 24... Qa5 {[%clk 0:00:20.8]} 25.
Be4 {[%clk 0:01:19.7]} 25... Ba6 {[%clk 0:00:20.5]} 26. Qc2 {[%clk 0:01:10]}
26... d3 {[%clk 0:00:19.4]} 27. Qb3 {[%clk 0:01:05.8]} 27... R5d7 {[%clk
0:00:18]} 28. Bc6 {[%clk 0:00:28.5]} 28... Rc7 {[%clk 0:00:16.7]} 29. Bb5 {[%clk
0:00:28.9]} 29... Bxb5 {[%clk 0:00:15.7]} 30. axb5 {[%clk 0:00:29.8]} 30... Qxb5
{[%clk 0:00:16.4]} 31. Ra4 {[%clk 0:00:28.6]} 31... Rc4 {[%clk 0:00:13.6]} 32.
h3 {[%clk 0:00:18.6]} 32... h6 {[%clk 0:00:12.2]} 33. Kh2 {[%clk 0:00:15.4]}
33... Re4 {[%clk 0:00:11]} 34. Ra7 {[%clk 0:00:10.9]} 34... d2 {[%clk
0:00:09.9]} 35. Qc2 {[%clk 0:00:09.1]} 35... Qd5 {[%clk 0:00:09.1]} 36. Qc7
{[%clk 0:00:07.5]} 36... Rf4 {[%clk 0:00:08.9]} 37. Qb7 {[%clk 0:00:03.5]} 37...
h5 {[%clk 0:00:06.5]} 38. Qxd5 {[%clk 0:00:03.3]} 38... Rxd5 {[%clk 0:00:05.9]}
39. Ra4 {[%clk 0:00:03.6]} 39... g6 {[%clk 0:00:04.4]} 40. b3 {[%clk 0:00:02.6]}
40... Re4 {[%clk 0:00:04.1]} 41. Nxd2 {[%clk 0:00:02.6]} 41... Red4 {[%clk
0:00:03.9]} 42. Nc4 {[%clk 0:00:01.5]} 42... Rxd1 {[%clk 0:00:02.7]} 43. Rxb4
{[%clk 0:00:02.1]} 43... Rb1 {[%clk 0:00:02.7]} 44. Rb8+ {[%clk 0:00:01.8]}
44... Kg7 {[%clk 0:00:03.1]} 45. Rb7 {[%clk 0:00:02.7]} 45... Rd3 {[%clk
0:00:03.2]} 46. Nd6 {[%clk 0:00:01.9]} 46... Rd5 {[%clk 0:00:02.4]} 47. Rxf7+
{[%clk 0:00:02]} 47... Kh6 {[%clk 0:00:02.2]} 48. f4 {[%clk 0:00:02.9]} 48...
Rxb3 {[%clk 0:00:01.8]} 49. Rf6 {[%clk 0:00:03.3]} 49... Rd2 {[%clk 0:00:01.6]}
50. Rxe6 {[%clk 0:00:03.6]} 50... Rbb2 {[%clk 0:00:01.7]} 51. Kg3 {[%clk
0:00:04.1]} 51... Rxg2+ {[%clk 0:00:02.4]} 52. Kf3 {[%clk 0:00:04.7]} 52...
Rbf2+ {[%clk 0:00:02.5]} 53. Ke4 {[%clk 0:00:05.3]} 53... Re2+ {[%clk
0:00:03.1]} 54. Kd5 {[%clk 0:00:05.9]} 54... Rgf2 {[%clk 0:00:03.4]} 55. Rf6
{[%clk 0:00:05.7]} 55... Kg7 {[%clk 0:00:03]} 56. Ke6 {[%clk 0:00:05.9]} 56...
Re3 {[%clk 0:00:02.4]} 57. Ne8+ {[%clk 0:00:06.3]} 57... Kg8 {[%clk 0:00:02.5]}
58. Rxg6+ {[%clk 0:00:05.8]} 58... Kf8 {[%clk 0:00:02.7]} 59. Nf6 {[%clk
0:00:06.3]} 1-0

[Event "Late-Titled-Tuesday-Blitz-January-30-2024"]
[Site "Chess.com"]
[Date "2024.01.30"]
[Round "4"]
[White "Flawless_Fighter"]
[Black "Onthequiet"]
[Result "0-1"]
[WhiteElo "2771"]
[BlackElo "2438"]
[TimeControl "180+1"]
[EndTime "14:39:43 PST"]
[Termination "Onthequiet won on time"]

1. e4 {[%clk 0:02:51.3]} 1... c6 {[%clk 0:02:59.3]} 2. d4 {[%clk 0:02:51.3]}
2... d5 {[%clk 0:03:00.2]} 3. exd5 {[%clk 0:02:51.1]} 3... cxd5 {[%clk
0:03:00.4]} 4. Bd3 {[%clk 0:02:51.8]} 4... Nf6 {[%clk 0:03:00.7]} 5. c3 {[%clk
0:02:52.4]} 5... Nc6 {[%clk 0:03:01.1]} 6. Bf4 {[%clk 0:02:51.7]} 6... g6 {[%clk
0:02:59.8]} 7. Nd2 {[%clk 0:02:50.4]} 7... Bg7 {[%clk 0:02:58.9]} 8. Ngf3 {[%clk
0:02:48.8]} 8... O-O {[%clk 0:02:58.8]} 9. O-O {[%clk 0:02:49.2]} 9... Bf5
{[%clk 0:02:59.1]} 10. Bxf5 {[%clk 0:02:48.7]} 10... gxf5 {[%clk 0:03:00]} 11.
Ne5 {[%clk 0:02:49]} 11... Rc8 {[%clk 0:02:58.8]} 12. Re1 {[%clk 0:02:41.5]}
12... e6 {[%clk 0:02:58.6]} 13. Nxc6 {[%clk 0:02:35.5]} 13... Rxc6 {[%clk
0:02:58.1]} 14. Be5 {[%clk 0:02:35.1]} 14... Ne4 {[%clk 0:02:55.8]} 15. Bxg7
{[%clk 0:02:31.4]} 15... Kxg7 {[%clk 0:02:55.6]} 16. f3 {[%clk 0:02:31.6]} 16...
Nxd2 {[%clk 0:02:55.2]} 17. Qxd2 {[%clk 0:02:31.7]} 17... Qh4 {[%clk 0:02:54.6]}
18. Qf2 {[%clk 0:02:22.5]} 18... Qxf2+ {[%clk 0:02:53.6]} 19. Kxf2 {[%clk
0:02:23.4]} 19... b5 {[%clk 0:02:53.2]} 20. a3 {[%clk 0:02:22.4]} 20... a5
{[%clk 0:02:52.1]} 21. f4 {[%clk 0:02:13.2]} 21... Rb8 {[%clk 0:02:45.4]} 22.
Re3 {[%clk 0:02:13]} 22... b4 {[%clk 0:02:42.3]} 23. axb4 {[%clk 0:02:08.1]}
23... axb4 {[%clk 0:02:43.2]} 24. Rae1 {[%clk 0:01:33.8]} 24... bxc3 {[%clk
0:02:41.6]} 25. bxc3 {[%clk 0:01:34.1]} 25... Rb3 {[%clk 0:02:39.6]} 26. Rg3+
{[%clk 0:01:34.1]} 26... Kf6 {[%clk 0:02:39.3]} 27. Ree3 {[%clk 0:01:34.6]}
27... Rb2+ {[%clk 0:02:33.7]} 28. Kg1 {[%clk 0:01:28.6]} 28... Ra6 {[%clk
0:02:31.7]} 29. h3 {[%clk 0:01:28.3]} 29... Rc2 {[%clk 0:02:02.8]} 30. Kh2
{[%clk 0:01:27.5]} 30... Ra1 {[%clk 0:02:00.7]} 31. Rg8 {[%clk 0:01:24.9]} 31...
Rac1 {[%clk 0:01:53.7]} 32. Rc8 {[%clk 0:01:19.7]} 32... h5 {[%clk 0:01:47.7]}
33. h4 {[%clk 0:00:57]} 33... Rd1 {[%clk 0:01:43.5]} 34. Rg8 {[%clk 0:00:55.1]}
34... Rdc1 {[%clk 0:01:39.5]} 35. Rc8 {[%clk 0:00:54.5]} 35... Rf1 {[%clk
0:01:25.4]} 36. Rh8 {[%clk 0:00:49.5]} 36... Rxf4 {[%clk 0:01:23.2]} 37. Rh6+
{[%clk 0:00:45.6]} 37... Kg7 {[%clk 0:01:19.1]} 38. Rxh5 {[%clk 0:00:46.5]}
38... Kf6 {[%clk 0:01:11.3]} 39. Rh6+ {[%clk 0:00:43.3]} 39... Ke7 {[%clk
0:01:07.1]} 40. Rg3 {[%clk 0:00:42.9]} 40... Rf1 {[%clk 0:00:53.5]} 41. Rg7
{[%clk 0:00:33.8]} 41... Rff2 {[%clk 0:00:43.9]} 42. Rhh7 {[%clk 0:00:33.1]}
42... Kd6 {[%clk 0:00:43.8]} 43. h5 {[%clk 0:00:18.3]} 43... f4 {[%clk
0:00:43.3]} 44. Kh3 {[%clk 0:00:19]} 44... Rxc3+ {[%clk 0:00:41.3]} 45. Kh4
{[%clk 0:00:17.4]} 45... Rc7 {[%clk 0:00:29.9]} 46. h6 {[%clk 0:00:16.6]} 46...
f3 {[%clk 0:00:28.2]} 47. gxf3 {[%clk 0:00:16.6]} 47... Rxf3 {[%clk 0:00:29.1]}
48. Kg5 {[%clk 0:00:15.4]} 48... Rd3 {[%clk 0:00:25.2]} 49. Rh8 {[%clk
0:00:14.9]} 49... Rxd4 {[%clk 0:00:25]} 50. h7 {[%clk 0:00:14.3]} 50... Ke5
{[%clk 0:00:21.1]} 51. Rf8 {[%clk 0:00:07.9]} 51... Rc1 {[%clk 0:00:19.9]} 52.
Rgxf7 {[%clk 0:00:01.8]} 52... Rg1+ {[%clk 0:00:17.8]} 53. Kh5 {[%clk
0:00:02.4]} 53... Rh1+ {[%clk 0:00:16.5]} 54. Kg5 {[%clk 0:00:01.6]} 54... Rdh4
{[%clk 0:00:12.1]} 0-1